Cogmind - Beta 13 @@@ ROGUE MODE // 2024.08.03 @ 12:18:58 Player: btracker Result: Destroyed by G-34 Mercenary with Small Laser Performance ------------- Evolutions (0) 0 Regions Visited (2) 400 Robots Destroyed (9) 45 Value Destroyed (205) 205 Prototype IDs (0) 0 Alien Tech Used (0) 0 Bonus (0) 0 TOTAL SCORE: 650 Bonus ------- None Cogmind --------- Core Integrity 0/250 Matter 254/300 Energy 100/100 System Corruption 0% Temperature Cool (6) Movement Core (1400) Ox27 Location -10/Mines Parts ------- > --- POWER (1) -------- (None) > --- PROPULSION (2) --- (None) > --- UTILITY (2) ------ Huge Storage Unit > --- WEAPON (2) ------- Mining Laser Mining Laser > --- INVENTORY (25) --- Ion Engine Light Ion Engine Aluminum Leg Aluminum Leg Small Storage Unit High-capacity Matter Pod (0) Mining Laser Peak State ------------ > --- POWER ------------ Light Nuclear Core > --- PROPULSION ------- Aluminum Leg Aluminum Leg > --- UTILITY ---------- Huge Storage Unit > --- WEAPON ----------- Particle Gun Light Assault Rifle > --- INVENTORY -------- Ion Engine Light Ion Engine Aluminum Leg Aluminum Leg Small Storage Unit High-capacity Matter Pod Mining Laser Mining Laser Mining Laser [Rating: 9] Favorites ----------- Power Light Nuclear Core Engine Ion Engine Power Core Light Nuclear Core Propulsion Aluminum Leg Leg Aluminum Leg Utility Huge Storage Unit Device Seismic Detector Storage Huge Storage Unit Weapon Light Assault Rifle Energy Gun Particle Gun Ballistic Gun Light Assault Rifle Special Weapon Mining Laser Build | -11 -10 -10 ------- Run | Yrd Mat Min Slots Evolved . | . . . Power . | . . . Propulsion . | . . . Utility . | . . . Weapon . | . . . Parts Attached 13 | 8 3 2 Power 2 | 1 1 . Engine 1 | 1 . . Core 1 | . 1 . Reactor . | . . . Propulsion 2 | 2 . . Treads . | . . . Leg 2 | 2 . . Wheel . | . . . Hover . | . . . Flight . | . . . Utility 3 | 2 1 . Device 1 | 1 . . Storage 2 | 1 1 . Processor . | . . . Hackware . | . . . Protection . | . . . Artifact . | . . . Weapon 6 | 3 1 2 Energy Gun 2 | 1 1 . Energy Cannon . | . . . Ballistic Gun 2 | 2 . . Ballistic Cannon . | . . . Launcher . | . . . Special Weapon 2 | . . 2 Impact Weapon . | . . . Slashing Weapon . | . . . Piercing Weapon . | . . . Special Melee Weapon . | . . . Unidentified Prototypes . | . . . Parts Lost 6 | . 1 5 Power 1 | . . 1 Propulsion 2 | . . 2 Utility 1 | . 1 . Weapon 2 | . . 2 Highest Loss Streak 5 | . 1 5 To Critical Strikes . | . . . Average Slot Usage (%) 84 | . 87 81 Engine 5 | . 10 . Core 8 | . 3 12 Leg 27 | . 28 27 Device 1 | . 2 . Storage 14 | . 14 14 Energy Gun 7 | . 3 12 Ballistic Gun 19 | . 24 13 Naked Turns . | . . . Heaviest Build 89 | 13 89 89 Greatest Support 20 | 20 20 20 Greatest Overweight (x) 27 | . 4 27 Average Overweight (x) 2 | . 3 4 Largest Inventory Capacity 25 | 8 25 25 Average Capacity 22 | 7 24 25 Most Carried 9 | 4 9 9 Average Carried 6 | 1 5 8 Final Capacity 25 | 8 25 25 Final Carried 9 | 1 9 7 Class Distribution -------------------- 100% | Mutant Dominant Class ---------------- Mutant | -10/Materials Mutant | -10/Mines Resources | -11 -10 -10 ----------- Run | Yrd Mat Min Matter Collected 346 | 212 90 44 Remotely . | . . . Salvage Created 328 | 118 90 120 Parts 19 | 8 5 6 Haulers Intercepted . | . . . Recyclers Shooed 1 | 1 . . Parts Field Recycled . | . . . Retrieved Matter . | . . . Parts Self-Destructed . | . . . Prevented . | . . . Kills | -11 -10 -10 ------- Run | Yrd Mat Min Combat Hostiles Destroyed 7 | . 2 5 Guns 7 | . 2 5 Classes Destroyed 4 | 2 1 1 Tunneler 1 | 1 . . Recycler 1 | 1 . . Swarmer 3 | . . 3 Grunt 4 | . 2 2 Best Kill Streak 3 | 2 1 3 Combat Bots Only 3 | . 1 3 Max Kills in Single Turn 1 | 1 1 1 Gunslinging . | . . . Exploded . | . . . Melee . | . . . Uniques/NPCs Destroyed . | . . . Combat | -11 -10 -10 -------- Run | Yrd Mat Min Hostile Shots Fired 88 | . 26 62 Missed 24 | . 8 16 Damage Taken 775 | . 257 518 Core 257 | . 79 178 Absorbed by Shields . | . . . Core Remaining (%) 100 | 100 . . Volleys Fired 57 | 10 25 22 Largest 2 | 2 2 2 Hottest 85 | 40 40 85 Shots Fired 103 | 20 50 33 Gun 103 | 20 50 33 Cannon . | . . . Launcher . | . . . Special . | . . . Kinetic 92 | 20 50 22 Thermal 11 | . . 11 Explosive . | . . . Electromagnetic . | . . . Robot Hit Streak 7 | 3 6 7 Robot Miss Streak 9 | 2 5 9 Penetration Max . | . . . Secondary Targets 2 | . . 2 Max Gunslinging Chain 1 | . . 1 Shots Hit Robots 54 | 12 23 19 Core Hits 24 | 4 8 12 Critical Kills . | . . . Critical Parts Destroyed . | . . . Critical Strikes 1 | . . 1 Burn 1 | . . 1 Melee Attacks . | . . . Impact . | . . . Slashing . | . . . Piercing . | . . . Sneak Attacks . | . . . Combat Hostiles . | . . . Follow-up Attacks . | . . . Damage Inflicted 485 | 90 184 211 Guns 485 | 90 184 211 Cannons . | . . . Explosions . | . . . Melee . | . . . Ramming . | . . . Kinetic 361 | 90 184 87 Thermal 124 | . . 124 Explosive . | . . . Electromagnetic . | . . . Impact . | . . . Slashing . | . . . Piercing . | . . . Highest Corruption . | . . . Average Corruption . | . . . Corruption Purged . | . . . Corruption Blocked . | . . . Overload Shots . | . . . Overflow Damage . | . . . Projectiles . | . . . Explosions . | . . . Melee . | . . . Knockbacks . | . . . Impact . | . . . Kinetic . | . . . Secondary . | . . . Self-Inflicted Damage . | . . . Shots . | . . . Rammed . | . . . Targets Rammed . | . . . Kicked . | . . . Crushed . | . . . Highest Temperature 252 | . 18 252 Average Temperature 72 | . 8 96 Received Heat Transfer 408 | . 144 264 Siege Activations . | . . . Robots Corrupted . | . . . Combat Hostiles . | . . . Parts Fried . | . . . Impact Corruptions . | . . . Robots Melted . | . . . Combat Hostiles . | . . . Parts Melted 1 | . . 1 Heat Transferred 370 | . . 370 Parts Sabotaged . | . . . Parts Stolen . | . . . Parts Stripped . | . . . Power Chain Reactions . | . . . Alert | -11 -10 -10 ------- Run | Yrd Mat Min Peak Influence 125 | 10 65 125 Initial 25 | . 6 25 Average 42 | 2 38 60 Maximum Alert Level . | . . . Low Security (%) 100 | 100 100 100 Level 1 . | . . . Level 2 . | . . . Level 3 . | . . . Level 4 . | . . . Level 5 . | . . . High Security . | . . . Max Security . | . . . Squads Dispatched . | . . . Investigation . | . . . Extermination . | . . . Reinforcement . | . . . Assault . | . . . Garrison . | . . . Intercept . | . . . Searches Triggered . | . . . Construction Impeded . | . . . Haulers Reinforced . | . . . Active Scanning Responses . | . . . Cargo Convoy Interrupts . | . . . Stealth | -11 -10 -10 --------- Run | Yrd Mat Min Distress Signals . | . . . Communications Jammed . | . . . Distress Signals . | . . . Times Spotted 11 | . 5 6 Peak Tracking Total 3 | . 2 3 Tactical Retreats 1 | . 1 . Traps | -11 -10 -10 ------- Run | Yrd Mat Min Traps Triggered . | . . . Indirectly . | . . . Trap Hack Attempts . | . . . Triggered . | . . . Disarmed . | . . . Reprogrammed . | . . . Reused . | . . . Traps Extracted . | . . . Installed . | . . . Triggered . | . . . Machines | -11 -10 -10 ---------- Run | Yrd Mat Min Machines Disabled . | . . . Max in Single Turn . | . . . Machines Repaired . | . . . Machines Dismantled . | . . . Machines Sabotaged . | . . . Overloaded Fab Kills . | . . . Hacking | -11 -10 -10 --------- Run | Yrd Mat Min Machines Accessed . | . . . Terminals . | . . . Fabricators . | . . . Repair Stations . | . . . Recycling Units . | . . . Scanalyzers . | . . . Garrison Access . | . . . Total Hacks . | . . . Successful . | . . . Failed . | . . . Catastrophic . | . . . Database Lockouts . | . . . Manual . | . . . Terminals . | . . . Fabricators . | . . . Repair Stations . | . . . Recycling Units . | . . . Scanalyzers . | . . . Garrison Access . | . . . Terminal Hacks . | . . . Fabricator Hacks . | . . . Repair Station Hacks . | . . . Recycling Unit Hacks . | . . . Scanalyzer . | . . . Garrison Access Hacks . | . . . Unauthorized Hacks . | . . . Terminals . | . . . Fabricators . | . . . Repair Stations . | . . . Recycling Units . | . . . Scanalyzers . | . . . Garrison Access . | . . . Data Cores Recovered . | . . . Used . | . . . Hacking Detections . | . . . Full Trace Events . | . . . Feedback Events . | . . . Feedback Blocked . | . . . Robot Schematics Acquired . | . . . Robots Built . | . . . Authchips . | . . . Time . | . . . Total Robot Build Rating . | . . . Part Schematics Acquired . | . . . Parts Built . | . . . Authchips . | . . . Time . | . . . Total Part Build Rating . | . . . Parts Repaired . | . . . Time . | . . . Parts Recycled . | . . . Recycled Matter . | . . . Retrieved Matter . | . . . Retrieved Components . | . . . Parts Scanalyzed . | . . . Part Schematics Acquired . | . . . Parts Damaged . | . . . Bothacking | -11 -10 -10 ------------ Run | Yrd Mat Min Used RIF Installer . | . . . Robots Hacked . | . . . Non-combat . | . . . Combat . | . . . Robot Hacks Applied . | . . . Relay Couplers Released . | . . . Fabnet Peak Effective % . | . . . Robots Rewired . | . . . Allies Hacked . | . . . Hacks Repelled . | . . . Allies | -11 -10 -10 -------- Run | Yrd Mat Min Total Allies . | . . . Largest Group . | . . . Highest-Rated Group . | . . . Highest-Rated Ally . | . . . Total Orders . | . . . Ally Attacks . | . . . Total Damage . | . . . Kills . | . . . Allies Corrupted . | . . . Allies Melted . | . . . Intel | -11 -10 -10 ------- Run | Yrd Mat Min Robot Analysis Total . | . . . Derelict Logs Recovered . | . . . Drone Launches . | . . . Drone Recoveries . | . . . Exploration | -11 -10 -10 ------------- Run | Yrd Mat Min Turns Passed 827 | 111 364 352 Spaces Moved 225 | 68 84 73 Core 18 | 17 . 1 Treads . | . . . Legs 207 | 51 84 72 Wheels . | . . . Hover . | . . . Flight . | . . . Fastest Speed 50 | 50 120 400 Average Speed 295 | 102 346 417 Slowest Speed 1400 | 120 400 1400 Overloaded Moves . | . . . Propulsion Burnouts . | . . . Robots Hopped . | . . . Cave-ins Triggered . | . . . Exploration Rate (%) 11 | 4 14 16 Regions Visited 2 Branch Regions 1 Pre-discovered Areas . | . . . Known Exits Taken . | . . . Unknown Exits Taken 2 | 1 1 . Scrap Searched . | . . . Spaces Dug . | . . . Terrain Destroyed . | . . . Melee . | . . . Projectile . | . . . AOE . | . . . Terrain Rammed . | . . . Walls Destroyed . | . . . Machines Disabled . | . . . Actions | -11 -10 -10 --------- Run | Yrd Mat Min Total 312 | 91 118 103 Wait 6 | . . 6 Move 223 | 67 83 73 Hop . | . . . Pick Up 11 | 5 6 . Fast Attach 5 | 4 1 . Attach 5 | 3 . 2 Detach . | . . . Swap 3 | 1 2 . Drop 2 | 1 1 . Fire 57 | 10 25 22 Melee . | . . . Ram . | . . . Kick . | . . . Crush . | . . . Escape Stasis . | . . . Rewire . | . . . Trap . | . . . Miscellaneous . | . . . Route ------- -11/Scrapyard -10/Materials -10/Mines History --------- Turn | Location | Event 5 | -11/Scrapyard | Discovered new exit (range 15) 112 | -11/Scrapyard | Entered Materials 228 | -10/Materials | Discovered new exit (range 7) 306 | -10/Materials | Build established: Mutant 476 | -10/Materials | Entered Mines 764 | -10/Mines | Core integrity fell below 50% 786 | -10/Mines | Core integrity fell below 20% 828 | -10/Mines | Destroyed by G-34 Mercenary with Small Laser Last Messages --------------- Switching to secondary target: S-10 Pest. K-01 Serf collects debris. S-10 Pest destroyed. Switching to secondary target: S-10 Pest. K-01 Serf collects debris. S-10 Pest destroyed. K-01 Serf collects debris. Acquired 10 matter. Acquired 16 matter. Acquired 18 matter. G-47 Trooper suffers critical hit (Burn). Critical hit (Burn: +37). Aluminum Leg melted. G-47 Trooper destroyed. Particle Gun destroyed. Lgt. Nuclear Core destroyed. Aluminum Leg destroyed. G-34 Mercenary destroyed. Lgt. Assault Rifle destroyed. Aluminum Leg destroyed. Map ----- +----------------------------------------------------+ | ???????????????????????????????????????????? | | ???????????????????????????????????????????? | | ???????????????????????????????????????????? | | ???????????????????????????????????????????? | | ???????????????????????????????????????????? | | ???????????????????????????????????????????? | | ???????????????????????????????????????????? | | ???????????????????????????????????????????? | | ???????????????????????????????????????????? | | ???????????????????????????????????????????? | | ???????????????????? ?????????????????????? | | ???????????????????? ?????????????????????? | | ???????????????????? ##???????????????????? | | ???????????????????? ???????????????????? | | ???????????????????? ???????????????????? | | ???????????????????? ###?????????????????? | | ???????????????????? ##????????????????? | | ???????????????????? ?????????????????? | | ???????????????????? ??????????????????? | | ????????????????????# ??????????????????? | | ????????????????????# ???????????????????? | | ????????????????????# #???????????????????? | | ????????????????????#%*#???????????????????? | | ????????????????????# #???????????????????? | | ??????############### #???????????????????? | | ??????# @%g #???????????????????? | | ??????# #???????????????????? | | ??????# ############?????????????????? | | ??????# ##??## #######???????????? | | ??????####### #### #???????????? | | ????????????# #???????????? | | ????????????## ** ### #???????????? | | ?????????????# *= = ##???????????????? | | ?????????##### ### ######????????????????? | | ?????????# #?####?????????????????????? | | ?????????# ### #??????????????????????????? | | ?????????# #?# #??????????????????????????? | | ??????#### #?# ?????????????????????????? | | ??????# #?# ## ????????????????????????? | | ??????# ####?# #??#???????????????????????? | | ??????# #????# #??????????????????????????? | | ?????## #????# #??????????????????????????? | | ???### ###### #??????????????????????????? | | ??# #??????????????????????????? | | ?# #### ####??????????????????????????? | | ?# ##??# #?????????????????????????????? | | ?## #??### #?????????????????????????????? | | ??####??## ##????????????????????????????? | | ????????# ##???????????????????????????? | | ????????# #???????????????????????????? | +----------------------------------------------------+ Best States ------------- Heat Dissipation 25 Energy Generation 14 Energy Capacity 250 Matter Stores 267 Matter Capacity 300 Sight Range 16 Terrain Scan Density 10 Evasion (%) 55 Item Schematics ----------------- None Robot Schematics ------------------ None Fabricated ------------ Nothing Alien Tech Used ----------------- None Achievements -------------- None Challenges ------------ None Game ------ Seed TargetingSalvageCalibrator Manual? 0 Play Time 00:07:05 Cumulative 2.4 hours Start 2024.08.03 @ 12:12:55 End 2024.08.03 @ 12:18:58 Sessions 1 Manual Loads 0 Difficulty Rogue Special Mode None Game No. 8 Rogue 8 Adventurer 0 Explorer 0 Win Type - Total 0 Types 0/0/0/0/0/0/0/0/0 Lore% 6 Gallery% 5 Achievement% 8 Wizard Run 0 Options --------- Layout 1 ASCII 0 Keyboard 0 Movement Mouse Keybinds 0 Fullscreen 1 Font 24/Smallcaps Map View 50x35 Zoom Use 0% Tactical HUD 0 Map Filters NONE Filters NONE Steam 1 RUN: f3132844-5b7d-4399-aea8-5c9120126410